bitfinex-derivatives/quotes_BTCF0:USTF0_20240925
["timestamp","ask_amount","ask_price","bid_price","bid_amount"]
[1727289074566,0.083983,63308.0,63305.0,0.12]
[1727289074567,0.005,63308.0,63305.0,0.12]
[1727289074960,0.078986,63305.0,63304.0,0.078987]
[1727289076272,0.078986,63305.0,63301.0,0.3608]
[1727289076273,0.07899,63302.0,63301.0,0.3608]
[1727289076475,0.078992,63301.0,63300.0,0.078992]
[1727289076681,0.14384131,63301.0,63295.0,0.3608]
[1727289076869,0.078987,63304.0,63298.0,0.12]
[1727289076870,0.078994,63299.0,63298.0,0.12]
[1727289077064,0.22283531,63299.0,63298.0,0.12]
[1727289077466,0.078997,63296.0,63295.0,0.4808]
[1727289077668,0.22284158,63296.0,63295.0,0.3608]
[1727289077975,0.21684158,63296.0,63295.0,0.3608]
[1727289078275,0.21184158,63296.0,63295.0,0.3608]
[1727289078864,0.94479858,63296.0,63295.0,0.009]
[1727289079979,0.070007,63288.0,63287.0,0.0037]
[1727289080276,0.072009,63287.0,63286.0,0.00237003]
[1727289080471,0.25155358,63287.0,63286.0,0.00237003]
[1727289081566,0.24555358,63287.0,63286.0,0.00237003]
[1727289081876,0.24255358,63287.0,63286.0,0.00237003]
[1727289082565,0.24255358,63287.0,63285.0,0.079011]
[1727289082566,0.17954458,63287.0,63279.0,0.0037]
[1727289082770,0.5408,63282.0,63275.0,0.0024636]
[1727289083072,0.079022,63276.0,63275.0,0.0024636]
[1727289083372,0.16620429,63276.0,63275.0,0.0024636]
[1727289084776,0.03948149,63276.0,63275.0,0.0024636]
[1727289085376,0.03948149,63276.0,63275.0,0.06494861]
[1727289086268,0.04048149,63276.0,63275.0,0.0024636]
[1727289086582,0.16512399,63277.0,63275.0,0.0024636]
[1727289086774,0.16512399,63277.0,63275.0,0.04933611]
[1727289086966,0.079022,63276.0,63275.0,0.0024636]
[1727289088283,0.002,63277.0,63275.0,0.1824636]
[1727289088589,0.002,63277.0,63276.0,0.079022]
[1727289088770,0.002,63277.0,63275.0,0.1824636]
[1727289089381,0.001,63276.0,63275.0,0.1824636]
[1727289090083,0.081021,63277.0,63275.0,0.1824636]
[1727289090679,0.001,63276.0,63275.0,0.1824636]
[1727289091182,0.080021,63277.0,63275.0,0.1824636]
[1727289091582,0.080021,63277.0,63275.0,0.0024636]
[1727289093288,0.079021,63277.0,63275.0,0.0024636]
[1727289093486,0.001,63276.0,63275.0,0.0814876]
[1727289093985,0.10648356,63277.0,63275.0,0.0814876]
[1727289094481,0.10548356,63277.0,63275.0,0.0814876]
[1727289094686,0.001,63276.0,63275.0,0.0814876]
[1727289095885,0.080022,63276.0,63275.0,0.0814876]
[1727289096594,0.079022,63276.0,63275.0,0.0814876]
[1727289097178,0.080022,63276.0,63275.0,0.0814876]
[1727289098486,0.11872437,63276.0,63275.0,0.0814876]
[1727289099782,0.080022,63276.0,63275.0,0.0814876]
[1727289100286,0.001,63276.0,63275.0,0.2614876]
[1727289102491,0.001,63276.0,63275.0,0.30826193]
[1727289102881,0.001,63276.0,63275.0,0.30579833]
[1727289103286,0.001,63276.0,63275.0,0.338048]
[1727289103486,0.001,63276.0,63275.0,0.40053301]
[1727289104394,0.001,63276.0,63275.0,0.338048]
[1727289105596,0.0037,63283.0,63282.0,0.079015]
[1727289105787,0.02622249,63288.0,63282.0,0.3608]
[1727289105984,0.079002,63292.0,63291.0,0.079004]
[1727289106297,0.3608,63298.0,63291.0,0.079004]
[1727289106298,0.078998,63296.0,63291.0,0.22689973]
[1727289106488,0.078998,63296.0,63295.0,0.078998]
[1727289107594,0.092998,63296.0,63295.0,0.078998]
[1727289107900,0.100998,63296.0,63295.0,0.078998]
[1727289108086,0.008,63296.0,63295.0,0.258998]
[1727289108396,0.016,63296.0,63295.0,0.258998]
[1727289108586,0.015,63296.0,63295.0,0.258998]
[1727289109792,0.007,63296.0,63295.0,0.258998]
[1727289109991,0.014,63296.0,63295.0,0.258998]
[1727289110187,0.01,63296.0,63295.0,0.258998]
[1727289110387,0.007,63296.0,63295.0,0.258998]
[1727289110896,0.003,63296.0,63295.0,0.258998]
[1727289111094,0.078989,63303.0,63301.0,0.078991]
[1727289111300,0.078989,63303.0,63301.0,0.18]
[1727289111497,0.078989,63303.0,63302.0,0.07899]
[1727289112197,0.078993,63300.0,63298.0,0.078995]
[1727289112401,0.078992,63301.0,63298.0,0.078995]
[1727289112596,0.078992,63301.0,63300.0,0.078992]
[1727289113801,0.32384382,63301.0,63290.0,0.3645]
[1727289114112,0.008,63302.0,63293.0,0.079001]
[1727289114113,0.38462512,63294.0,63293.0,0.079001]
[1727289114403,0.32384382,63294.0,63293.0,0.079001]
[1727289114990,0.26718054,63294.0,63293.0,0.079001]
[1727289115202,0.079003,63292.0,63290.0,0.001]
[1727289115405,0.08718054,63291.0,63290.0,0.001]
[1727289115600,0.16618454,63291.0,63290.0,0.001]
[1727289116704,0.22286449,63291.0,63290.0,0.001]
[1727289116892,0.30186849,63291.0,63290.0,0.001]
[1727289117196,0.07901,63286.0,63283.0,0.082713]
[1727289117401,0.20465096,63284.0,63283.0,0.079013]
[1727289117606,0.34851145,63284.0,63283.0,0.079013]
[1727289118605,0.34851145,63284.0,63283.0,0.081013]
[1727289118606,0.14386049,63284.0,63283.0,0.081013]
[1727289119805,0.14386049,63284.0,63282.0,0.29023744]
[1727289119997,0.08519721,63283.0,63282.0,0.36925244]
[1727289120894,0.03869583,63283.0,63282.0,0.36925244]
[1727289121104,0.03869583,63283.0,63282.0,0.37125244]
[1727289121508,0.03869583,63283.0,63282.0,0.36925244]
[1727289121714,0.03969583,63283.0,63282.0,0.37125244]
[1727289122004,0.001,63283.0,63282.0,0.37125244]
[1727289122704,0.002,63283.0,63282.0,0.37125244]
[1727289123306,0.081014,63283.0,63282.0,0.37125244]
[1727289123709,0.02567221,63287.0,63282.0,0.29223744]
[1727289123910,0.079009,63287.0,63286.0,0.04689803]
[1727289124095,0.079009,63287.0,63286.0,0.12590803]
[1727289124294,0.079003,63292.0,63291.0,0.079003]
[1727289125113,0.079003,63292.0,63291.0,0.12589454]
[1727289126398,0.3608,63295.0,63294.0,0.079]
[1727289127101,0.3608,63295.0,63294.0,0.12588055]
[1727289127502,0.439799,63295.0,63294.0,0.12588055]
[1727289127704,0.444799,63295.0,63294.0,0.12588055]
[1727289128006,0.47058505,63295.0,63294.0,0.12588055]
[1727289128197,0.47058505,63295.0,63294.0,0.079]
[1727289128801,0.56177261,63295.0,63294.0,0.079]
[1727289129698,0.079003,63292.0,63288.0,0.3608]
[1727289130009,0.24478572,63291.0,63290.0,0.079004]
[1727289130406,0.16619156,63291.0,63290.0,0.079004]
[1727289130603,0.16619156,63291.0,63282.0,0.33223744]
[1727289130604,0.079014,63283.0,63282.0,0.29763744]
[1727289130809,0.34620156,63283.0,63282.0,0.29023744]
[1727289132809,0.34720156,63283.0,63282.0,0.29123744]
[1727289133120,0.34720156,63283.0,63277.0,0.00237043]
[1727289133121,0.07902,63278.0,63277.0,0.00237043]
[1727289133410,0.29771101,63278.0,63277.0,0.00237043]
[1727289133722,0.34520756,63278.0,63277.0,0.00237043]
[1727289134215,0.16520756,63278.0,63268.0,0.0074]
[1727289134422,0.1734969,63269.0,63265.0,0.3952]
[1727289134602,0.26068446,63268.0,63267.0,0.079034]
[1727289135001,0.24486828,63268.0,63267.0,0.079034]
[1727289135311,0.08718756,63268.0,63267.0,0.079034]
[1727289135511,0.15768072,63269.0,63268.0,0.079032]
[1727289135714,0.1963833,63269.0,63268.0,0.079032]
[1727289135917,0.24489435,63269.0,63268.0,0.079032]
[1727289136101,0.24489435,63269.0,63268.0,0.553192]
[1727289136102,0.08721363,63269.0,63268.0,0.553192]
[1727289136708,0.08721363,63269.0,63268.0,1.232224]
[1727289136906,0.15762497,63271.0,63270.0,0.15806]
[1727289137210,0.15762497,63271.0,63270.0,0.74056121]
[1727289137415,0.15762497,63271.0,63270.0,1.81472121]
[1727289137613,0.15762497,63271.0,63270.0,1.85012121]
[1727289137808,0.15762497,63271.0,63270.0,1.69434695]
[1727289138111,0.15862497,63271.0,63270.0,1.69434695]
[1727289138719,0.001,63271.0,63270.0,1.69434695]
[1727289138917,0.002,63271.0,63270.0,1.69434695]
[1727289139216,0.002,63271.0,63270.0,1.09434695]
[1727289139520,0.002,63271.0,63270.0,1.09401918]
[1727289141012,0.002,63271.0,63270.0,0.61985918]
[1727289142014,0.002,63271.0,63270.0,0.88498628]
[1727289142214,0.0037,63278.0,63277.0,0.079021]
[1727289142421,0.02596745,63282.0,63281.0,0.079016]
[1727289142713,0.439814,63283.0,63282.0,0.079015]
[1727289142918,0.439814,63283.0,63282.0,0.19142535]
[1727289143713,0.3608,63283.0,63282.0,0.19142535]
[1727289143912,0.3608,63283.0,63282.0,0.259015]
[1727289143913,0.39949811,63283.0,63282.0,0.259015]
[1727289144107,0.16486669,63283.0,63282.0,0.69883]
[1727289144313,0.001,63283.0,63282.0,0.69883]
[1727289144521,0.001,63283.0,63282.0,0.73343]
[1727289145821,0.001,63283.0,63282.0,0.654415]
[1727289146124,0.081014,63283.0,63282.0,0.441815]
[1727289146513,0.11970748,63283.0,63282.0,0.441815]
[1727289146713,0.24587606,63283.0,63282.0,0.441815]
[1727289147223,0.04069348,63283.0,63282.0,0.441815]
[1727289147619,0.1281782,63283.0,63282.0,0.441815]
[1727289148121,0.16687168,63283.0,63282.0,0.441815]
[1727289148324,0.04069348,63283.0,63282.0,0.441815]
[1727289148623,0.12817821,63283.0,63282.0,0.441815]
[1727289149025,0.16821199,63283.0,63282.0,0.441815]
[1727289149319,0.31006671,63283.0,63282.0,0.441815]
[1727289150931,0.33569997,63283.0,63282.0,0.441815]
[1727289152029,0.24850198,63283.0,63282.0,0.441815]
[1727289152925,0.24850198,63283.0,63282.0,0.081015]
[1727289158733,0.24850198,63283.0,63282.0,0.15933133]
[1727289158924,0.10664726,63283.0,63282.0,0.081015]
[1727289159335,0.002,63283.0,63282.0,0.081015]
[1727289160327,0.002,63283.0,63282.0,0.1436788]
[1727289162632,0.002,63283.0,63282.0,0.081015]
[1727289163135,0.002,63283.0,63282.0,0.14369681]
[1727289163343,0.002,63283.0,63282.0,0.081015]
[1727289163731,0.002,63283.0,63282.0,0.14369904]
[1727289164344,0.002,63283.0,63282.0,0.081015]
[1727289167128,0.0406958,63283.0,63282.0,0.081015]
[1727289167335,0.08919836,63283.0,63282.0,0.081015]
[1727289167929,0.16821236,63283.0,63282.0,0.002]
[1727289168135,0.16821236,63283.0,63248.0,0.617056]
[1727289168136,1.16327836,63283.0,63272.0,0.0037]
[1727289168427,0.079029,63271.0,63270.0,0.3608]
[1727289168644,0.08719836,63271.0,63270.0,0.3608]
[1727289168943,0.08719836,63271.0,63270.0,2.05479]
[1727289169244,0.17373337,63273.0,63272.0,0.079027]
[1727289169450,0.26093449,63273.0,63272.0,0.259027]
[1727289169740,0.26093432,63273.0,63272.0,0.259027]
[1727289169944,0.03869725,63273.0,63272.0,0.259027]
[1727289170839,0.03969725,63273.0,63272.0,0.259027]
[1727289171734,0.04069725,63273.0,63272.0,0.259027]
[1727289172442,0.08920559,63273.0,63272.0,0.079027]
[1727289172951,0.08920543,63273.0,63272.0,0.079027]
[1727289173541,0.08920904,63273.0,63272.0,0.079027]
[1727289173740,0.08920904,63273.0,63272.0,0.259027]
[1727289173937,0.04070054,63273.0,63272.0,0.259027]
[1727289174143,0.14213894,63275.0,63274.0,0.079025]
[1727289174334,0.14213894,63275.0,63274.0,0.3257376]
[1727289175244,0.14313894,63275.0,63274.0,0.3257376]
[1727289176357,0.14413894,63275.0,63274.0,0.3257376]
[1727289178546,0.14413894,63275.0,63274.0,0.32587502]
[1727289179350,0.002,63275.0,63274.0,0.32587502]
[1727289179948,0.002,63275.0,63274.0,0.43537122]
[1727289181358,0.079019,63279.0,63276.0,0.079021]
[1727289181552,0.07902,63278.0,63277.0,0.32587102]
[1727289181953,0.03948207,63278.0,63277.0,0.32587102]
[1727289182165,0.03948207,63278.0,63277.0,0.28581111]
[1727289182348,0.40028207,63278.0,63277.0,0.28581111]
[1727289182551,0.40028207,63278.0,63277.0,0.11261603]
[1727289182856,0.079021,63277.0,63276.0,0.001]
[1727289183154,0.079021,63277.0,63276.0,0.002]
[1727289183658,0.078021,63277.0,63276.0,0.001]
[1727289184457,0.079021,63277.0,63276.0,0.002]
[1727289184650,0.079025,63274.0,63273.0,0.07849881]
[1727289184851,1.153141,63277.0,63272.0,0.07849881]
[1727289184852,0.079026,63273.0,63272.0,0.07849881]
[1727289185355,0.079027,63272.0,63271.0,0.07849881]
[1727289185658,0.076027,63272.0,63271.0,0.1911022]
[1727289186154,0.07,63274.0,63267.0,0.17320708]
[1727289186155,0.079029,63271.0,63270.0,0.07849881]
[1727289186360,0.079029,63271.0,63270.0,0.19108328]
[1727289186761,0.079029,63271.0,63270.0,0.19107875]
[1727289187661,0.080029,63271.0,63270.0,0.19107875]
[1727289188250,0.081029,63271.0,63270.0,0.07849881]
[1727289189263,0.07903,63270.0,63269.0,0.079031]
[1727289189667,0.002,63271.0,63270.0,0.07903]
[1727289190754,0.002,63271.0,63270.0,0.25903]
[1727289191459,0.001,63271.0,63270.0,0.25903]
[1727289191858,0.001,63271.0,63270.0,0.07903]
[1727289192255,0.002,63271.0,63270.0,0.07903]
[1727289192967,0.002,63271.0,63268.0,0.3608]
[1727289193262,0.079031,63269.0,63268.0,0.3608]
[1727289193654,0.259031,63269.0,63268.0,0.3608]
[1727289194754,0.079036,63266.0,63261.0,0.3682]
[1727289194951,0.079036,63266.0,63261.0,0.3608]
[1727289196153,0.079036,63266.0,63265.0,0.079036]
[1727289196562,0.36408,63269.0,63268.0,0.079032]
[1727289196759,0.3628,63269.0,63268.0,0.079032]
[1727289197149,0.3618,63269.0,63268.0,0.28585422]
[1727289197467,0.3608,63269.0,63268.0,0.28585422]
[1727289197669,0.3618,63269.0,63268.0,0.28585422]
[1727289197968,0.3618,63269.0,63268.0,0.28585899]
[1727289198261,0.441831,63269.0,63268.0,0.28585899]
[1727289198854,0.441831,63269.0,63268.0,0.20682699]
[1727289199053,0.621831,63269.0,63268.0,0.20682699]
[1727289199254,0.621831,63269.0,63268.0,0.11265291]
[1727289199468,0.621831,63269.0,63268.0,0.20682699]
[1727289200264,0.621831,63269.0,63268.0,0.11265291]
[1727289200265,1.775022,63269.0,63268.0,0.11265291]
[1727289200660,1.775022,63269.0,63268.0,0.1910824]
[1727289201055,1.80101792,63269.0,63268.0,0.1910824]
[1727289201257,1.80001792,63269.0,63268.0,0.19119479]
[1727289201560,1.80001792,63269.0,63261.0,0.3608]
[1727289201561,0.15807,63266.0,63262.0,0.09417408]
[1727289201766,0.079041,63261.0,63260.0,0.09417408]
[1727289201959,0.259041,63261.0,63260.0,0.1130249]
[1727289202554,1.25424,63261.0,63258.0,1e-08]
[1727289202756,0.51014,63260.0,63251.0,0.00237098]
[1727289202964,0.3608,63254.0,63252.0,0.11219178]
[1727289203160,0.079052,63253.0,63251.0,0.00237098]
[1727289203359,0.079052,63253.0,63252.0,0.11168601]
[1727289204067,0.36212,63255.0,63252.0,0.11168601]
[1727289204258,0.3608,63255.0,63251.0,0.08142398]
[1727289204459,0.18,63258.0,63251.0,0.08142398]
[1727289204683,0.001,63254.0,63251.0,0.08142398]
[1727289205165,0.079051,63254.0,63251.0,0.08142398]
[1727289206670,0.079051,63253.0,63251.0,0.08142398]
[1727289208272,0.080051,63253.0,63251.0,0.08142398]
[1727289210473,0.079052,63252.0,63251.0,0.08142398]
[1727289211572,0.080052,63252.0,63251.0,0.08142398]
[1727289212168,0.081052,63252.0,63251.0,0.08142398]
[1727289212974,0.081052,63252.0,63251.0,0.19255572]
[1727289213870,0.081052,63252.0,63251.0,0.19253778]
[1727289213871,0.03358634,63252.0,63251.0,0.19253778]
[1727289214075,0.002,63252.0,63251.0,0.19253778]
[1727289214281,0.081052,63252.0,63251.0,0.08142398]
[1727289214473,0.002,63252.0,63251.0,0.08142398]
[1727289214781,0.002,63252.0,63251.0,0.19219208]
[1727289215571,0.081052,63252.0,63251.0,0.19219208]
[1727289219378,0.081052,63252.0,63243.0,0.3608]
[1727289219581,0.079065,63242.0,63241.0,0.0037]
[1727289219778,0.079065,63242.0,63236.0,0.079072]
[1727289219980,0.18,63237.0,63236.0,0.079072]
[1727289220180,0.079073,63236.0,63234.0,0.0692]
[1727289220375,0.18,63237.0,63234.0,0.0692]
[1727289220684,0.18,63237.0,63235.0,0.079073]
[1727289221281,0.18,63237.0,63236.0,0.079072]
[1727289221583,0.18,63237.0,63236.0,0.08613175]
[1727289222282,0.181,63237.0,63236.0,0.08613175]
[1727289222781,0.18,63237.0,63236.0,0.08613175]
[1727289222983,0.001,63237.0,63236.0,0.08613175]
[1727289223183,0.001,63237.0,63236.0,0.26613175]
[1727289223373,0.001,63237.0,63236.0,0.62693175]
[1727289223575,0.002,63237.0,63236.0,0.62693175]
[1727289225381,0.002,63237.0,63236.0,0.70600375]
[1727289225586,0.0037,63242.0,63241.0,0.259066]
[1727289225879,0.08276,63246.0,63245.0,0.079061]
[1727289226081,0.07906,63246.0,63245.0,0.079061]
[1727289226683,0.07906,63246.0,63245.0,0.08612075]
[1727289226876,0.08006,63246.0,63245.0,0.08612075]
[1727289227191,0.04050049,63246.0,63245.0,0.08612075]
[1727289227574,0.002,63246.0,63245.0,0.08612075]
[1727289227877,0.002,63246.0,63245.0,0.19714413]
[1727289229681,0.002,63246.0,63245.0,0.26804413]
[1727289230178,0.002,63246.0,63245.0,0.36221821]
[1727289230374,0.002,63246.0,63245.0,0.36196526]
[1727289231479,0.002,63246.0,63245.0,0.29106526]
[1727289232086,0.08106,63246.0,63245.0,0.29106526]
[1727289232295,0.08106,63246.0,63245.0,0.19689118]
[1727289234181,0.54212,63248.0,63245.0,0.08612075]
[1727289234384,0.079059,63247.0,63246.0,0.04711526]
[1727289234696,0.079059,63247.0,63246.0,0.05417501]
[1727289234895,0.079059,63247.0,63246.0,0.13323501]
[1727289235790,0.080059,63247.0,63246.0,0.13323501]
[1727289237385,0.081059,63247.0,63246.0,0.13323501]
[1727289238594,0.002,63247.0,63246.0,0.13323501]
[1727289239891,0.002,63247.0,63246.0,0.16517975]
[1727289240097,0.002,63247.0,63246.0,0.24370493]
[1727289240294,0.002,63247.0,63246.0,0.35394858]
[1727289241186,0.002,63247.0,63246.0,0.08611975]
[1727289241386,0.081059,63247.0,63246.0,0.08611975]
[1727289241991,0.081059,63247.0,63246.0,0.13323335]
[1727289242209,1.234438,63247.0,63246.0,0.00705975]
[1727289242505,0.079065,63242.0,63241.0,0.09423021]
[1727289242796,0.619865,63242.0,63241.0,0.1105793]
[1727289242986,1.04966,63242.0,63236.0,0.53490221]
[1727289243186,0.0342,63241.0,63237.0,0.11069123]
[1727289243386,0.0342,63241.0,63238.0,0.11014199]
[1727289243598,0.259067,63240.0,63239.0,0.11014199]
[1727289243802,0.259067,63240.0,63239.0,0.11014223]
[1727289245099,0.258067,63240.0,63239.0,0.11014223]
[1727289245489,0.259067,63240.0,63239.0,0.11114223]
[1727289246688,0.001,63240.0,63239.0,0.19021123]
[1727289246995,0.002,63240.0,63239.0,0.19021123]
[1727289248498,0.002,63240.0,63239.0,0.19016575]
[1727289253398,0.081067,63240.0,63239.0,0.19016575]
[1727289255010,0.002,63240.0,63239.0,0.19016575]
[1727289255499,0.002,63240.0,63239.0,0.26923475]
[1727289255698,0.443556,63250.0,63240.0,0.079067]
[1727289255899,0.444836,63250.0,63249.0,0.079056]
[1727289256099,0.36208,63250.0,63249.0,0.079056]
[1727289256296,0.3608,63250.0,63249.0,0.18888654]
[1727289257109,0.38715125,63250.0,63249.0,0.18888654]
[1727289257513,0.46620625,63250.0,63249.0,0.080056]
[1727289259008,0.3608,63250.0,63249.0,0.080056]
[1727289259198,0.3645,63257.0,63256.0,0.079047]
[1727289259399,0.3608,63257.0,63256.0,0.079047]
[1727289259902,0.079043,63260.0,63257.0,0.079046]
[1727289260412,0.079044,63259.0,63257.0,0.079046]
[1727289261599,0.007,63260.0,63257.0,0.079046]
[1727289261811,0.007,63259.0,63257.0,0.079046]
[1727289262016,0.007,63259.0,63258.0,0.079045]
[1727289263411,0.02532771,63261.0,63260.0,0.079042]
[1727289263617,0.015,63259.0,63255.0,0.0653]
[1727289264510,0.3608,63262.0,63256.0,0.10920533]
[1727289264705,0.01,63261.0,63257.0,0.10920533]
[1727289264911,0.01,63261.0,63258.0,0.10920533]
[1727289265107,0.3608,63262.0,63255.0,0.0653]
[1727289265313,0.005,63259.0,63256.0,0.10919947]
[1727289265504,0.005,63259.0,63257.0,0.10919947]
[1727289265707,0.084045,63259.0,63255.0,0.0653]
[1727289265907,0.084045,63259.0,63256.0,0.10907987]
[1727289266112,0.084045,63259.0,63255.0,0.0653]
[1727289266113,0.084045,63259.0,63257.0,0.10907987]
[1727289266420,0.084045,63259.0,63255.0,0.0653]
[1727289266625,0.084045,63259.0,63256.0,0.10904674]
[1727289266823,0.084045,63259.0,63257.0,0.11004674]
[1727289267113,0.084045,63259.0,63257.0,0.001]
[1727289267423,0.079045,63258.0,63257.0,0.001]
[1727289268018,0.005,63259.0,63255.0,0.0653]
[1727289268019,0.079047,63257.0,63255.0,0.0653]
[1727289268209,0.079047,63257.0,63256.0,0.10904164]
[1727289269113,0.079047,63257.0,63255.0,0.0653]
[1727289269310,0.079047,63256.0,63255.0,0.0653]
[1727289269820,0.079047,63256.0,63255.0,0.0329]
[1727289270017,0.079049,63255.0,63254.0,0.3608]
[1727289270218,0.079049,63255.0,63254.0,0.46984306]
[1727289270820,0.079049,63255.0,63254.0,0.10904306]
[1727289271017,0.07905,63254.0,63249.0,0.09421406]
[1727289271320,0.338108,63251.0,63250.0,0.062687]
[1727289271521,0.338108,63251.0,63243.0,0.0037]
[1727289271522,0.15811,63250.0,63249.0,0.062687]
[1727289271721,0.439855,63250.0,63247.0,0.062687]
[1727289272020,0.338114,63248.0,63247.0,0.062687]
[1727289272230,0.158114,63248.0,63247.0,0.062687]
[1727289272418,0.079059,63247.0,63246.0,0.062687]
[1727289272621,0.158118,63247.0,63246.0,0.062687]
[1727289272815,0.158118,63247.0,63242.0,0.07836918]
[1727289272816,0.07906,63246.0,63245.0,0.062687]
[1727289273022,0.07506,63246.0,63245.0,0.062687]
[1727289273226,0.079064,63243.0,63242.0,0.07836918]
[1727289273418,0.079064,63243.0,63242.0,0.18761819]
[1727289273817,0.077064,63243.0,63242.0,0.18761819]
[1727289274420,0.079065,63242.0,63241.0,0.07836918]
[1727289274624,0.071065,63242.0,63241.0,0.18765126]
[1727289274827,0.071065,63242.0,63241.0,0.10928208]
[1727289275627,0.001,63243.0,63241.0,0.10928208]
[1727289275828,0.001,63243.0,63242.0,0.0783944]
[1727289276230,0.001,63243.0,63242.0,0.18770074]
[1727289276427,0.080064,63243.0,63242.0,0.18770074]
[1727289276729,0.079064,63243.0,63242.0,0.18770074]
[1727289277122,0.080064,63243.0,63242.0,0.18770074]
[1727289277518,0.081064,63243.0,63242.0,0.18770074]
[1727289277715,0.081064,63243.0,63242.0,0.18740759]
[1727289279326,0.081064,63243.0,63242.0,0.10901319]
[1727289279531,0.079065,63242.0,63241.0,0.06275855]
[1727289280731,0.080065,63242.0,63241.0,0.06275855]
[1727289280931,0.081065,63242.0,63241.0,0.06275855]
[1727289282730,0.081065,63242.0,63241.0,0.079066]
[1727289284225,0.43984,63262.0,63241.0,0.079066]
[1727289284226,0.084116,63250.0,63249.0,0.079056]
[1727289284531,0.080416,63250.0,63249.0,0.14188694]
[1727289284928,0.080416,63250.0,63249.0,0.079056]
[1727289285119,0.079056,63250.0,63249.0,0.079056]
[1727289285528,0.10545928,63250.0,63249.0,0.079056]
[1727289286527,0.10545928,63250.0,63249.0,0.18775126]
[1727289287332,0.02640328,63250.0,63249.0,0.28196532]
[1727289287532,0.0037,63257.0,63249.0,0.20290932]
[1727289287837,0.079046,63257.0,63252.0,0.18]
[1727289288041,0.079046,63257.0,63254.0,0.07854441]
[1727289288832,0.079049,63255.0,63254.0,0.07854441]
[1727289289038,0.079049,63255.0,63254.0,0.18725958]
[1727289290436,0.083049,63255.0,63254.0,0.18725958]
[1727289291641,0.087049,63255.0,63254.0,0.18725958]
[1727289292142,0.087049,63255.0,63254.0,0.07854441]
[1727289292532,0.087049,63255.0,63254.0,0.18731272]
[1727289292931,0.087049,63255.0,63254.0,0.07854441]
[1727289293135,0.087049,63255.0,63254.0,0.18730988]
[1727289294437,0.087049,63255.0,63254.0,0.07854441]
[1727289294641,0.07905,63254.0,63253.0,0.079051]
[1727289295047,0.3949,63254.0,63243.0,0.082763]
[1727289295340,0.5408,63248.0,63243.0,0.079063]
[1727289295537,0.5408,63248.0,63239.0,0.079068]
[1727289295751,0.07906,63246.0,63239.0,0.079068]
[1727289296135,0.079066,63241.0,63239.0,0.079068]
[1727289296336,0.18,63240.0,63236.0,0.079072]
[1727289296542,0.0946918,63238.0,63236.0,0.079072]
[1727289296848,0.07907,63238.0,63236.0,0.079072]
[1727289297848,0.08007,63238.0,63236.0,0.079072]
[1727289298547,0.08107,63238.0,63237.0,0.079071]
[1727289299947,0.08007,63238.0,63237.0,0.079071]
[1727289300150,0.08107,63238.0,63237.0,0.079071]
[1727289301547,0.002,63238.0,63237.0,0.28276011]
[1727289302048,0.08107,63238.0,63237.0,0.28276011]
[1727289302252,0.002,63238.0,63237.0,0.28276011]
[1727289303459,0.0037,63243.0,63242.0,0.079065]
[1727289303659,0.11032112,63244.0,63242.0,0.203868]
[1727289303960,0.18938312,63244.0,63243.0,0.18853905]
[1727289304459,0.11032112,63244.0,63243.0,0.18853905]
[1727289305655,0.11132112,63244.0,63243.0,0.18853905]
[1727289306661,0.19038312,63244.0,63243.0,0.18853905]
[1727289306860,0.19038312,63244.0,63243.0,0.28292247]
[1727289307066,0.19138312,63244.0,63243.0,0.19053905]
[1727289308860,0.19138312,63244.0,63243.0,0.28492247]
[1727289308861,0.11232112,63244.0,63243.0,0.28492247]
[1727289309560,0.11232112,63244.0,63243.0,0.081064]
[1727289311263,0.002,63244.0,63243.0,0.081064]
[1727289315265,0.081062,63244.0,63243.0,0.081064]
[1727289315561,0.002,63244.0,63243.0,0.081064]
[1727289321064,0.081062,63244.0,63243.0,0.081064]
[1727289322468,0.081062,63244.0,63243.0,0.002]
[1727289322973,0.441862,63244.0,63243.0,0.002]
[1727289324875,0.520924,63244.0,63243.0,0.002]
[1727289325174,0.553724,63244.0,63243.0,0.002]
[1727289326578,0.079069,63239.0,63238.0,0.0786917]
[1727289326775,0.07908,63230.0,63229.0,0.0074]
[1727289327073,0.079082,63228.0,63227.0,0.47176838]
[1727289327277,0.079082,63228.0,63227.0,0.11016838]
[1727289327872,0.078082,63228.0,63227.0,0.11016838]
[1727289328679,0.079082,63228.0,63227.0,0.11016838]
[1727289329475,0.080082,63228.0,63227.0,0.11016838]
[1727289330871,0.17465912,63228.0,63225.0,0.079086]
[1727289331071,0.080082,63228.0,63225.0,0.079086]
[1727289331584,0.079085,63227.0,63223.0,0.00237234]
[1727289332975,0.03951277,63227.0,63223.0,0.00237234]
[1727289333371,0.03951277,63227.0,63223.0,0.08146034]
[1727289333570,0.001,63227.0,63226.0,0.12617639]
[1727289333771,0.001,63227.0,63226.0,0.079085]
[1727289333971,0.439877,63232.0,63225.0,0.0333]
[1727289334181,0.079077,63232.0,63230.0,0.04708338]
[1727289334575,0.079077,63232.0,63229.0,0.04708338]
[1727289334776,0.10486656,63232.0,63229.0,0.04708338]
[1727289334978,0.07908,63231.0,63229.0,0.12616438]
[1727289335477,0.3608,63230.0,63228.0,0.04708338]
[1727289335679,0.079082,63228.0,63227.0,0.04708338]
[1727289335884,0.079082,63228.0,63223.0,0.00237234]
[1727289335885,0.079085,63226.0,63225.0,0.04708338]
[1727289336185,0.259085,63226.0,63225.0,0.04708338]
[1727289336483,0.079086,63225.0,63224.0,0.04708338]
[1727289336874,0.079086,63225.0,63223.0,0.00237234]
[1727289337075,0.079087,63224.0,63223.0,0.00237234]
[1727289339776,0.001,63225.0,63223.0,0.00237234]
[1727289339979,0.001,63225.0,63224.0,0.259087]
[1727289340181,0.001,63225.0,63224.0,0.37600693]
[1727289341184,0.001,63225.0,63224.0,0.328887]
[1727289341387,0.002,63225.0,63224.0,0.328887]
[1727289341584,0.001,63225.0,63224.0,0.328887]